[Event "MČR 2022 rapid"]
[Site "Turnov, Czech Republic"]
[Date "2022.09.11"]
[Round "2.4"]
[White "Kredl, Karel"]
[Black "Baláček, Tadeáš"]
[Result "0-1"]
[TimeControl "2x 15 min + 5s/move"]
[WhiteElo "2134"]
[BlackElo "2247"]

1. Nf3 {[%clk 00:15:07]} {[%emt 00:00:11]} d5 {[%clk 00:15:06]} 2. d4 {[%clk
00:15:03]} {[%emt 00:00:04]} Nf6 {[%clk 00:15:08]} {[%emt 00:00:05]} 3. g3
{[%clk 00:15:00]} {[%emt 00:00:11]} c6 {[%clk 00:15:06]} {[%emt 00:00:11]} 4.
Bg2 {[%clk 00:14:53]} {[%emt 00:00:05]} Bf5 {[%clk 00:15:08]} 5. O-O {[%clk
00:14:44]} {[%emt 00:00:21]} h6 {[%clk 00:15:04]} {[%emt 00:00:05]} 6. c4
{[%clk 00:14:37]} {[%emt 00:00:11]} e6 {[%clk 00:15:07]} {[%emt 00:00:05]} 7.
Nc3 {[%clk 00:14:17]} {[%emt 00:00:23]} Nbd7 {[%clk 00:15:06]} {[%emt
00:00:09]} 8. cxd5 {[%clk 00:13:56]} {[%emt 00:00:23]} exd5 {[%clk 00:15:07]}
{[%emt 00:00:06]} 9. Bf4 {[%clk 00:13:48]} {[%emt 00:00:13]} Be7 {[%clk
00:14:44]} {[%emt 00:00:25]} 10. Re1 {[%clk 00:12:34]} {[%emt 00:01:19]} O-O
{[%clk 00:14:44]} {[%emt 00:00:05]} 11. Ne5 {[%clk 00:12:21]} {[%emt 00:00:19]}
Bh7 {[%clk 00:10:46]} {[%emt 00:04:06]} 12. Qd2 {[%clk 00:09:05]} {[%emt
00:03:21]} Re8 {[%clk 00:10:05]} {[%emt 00:00:41]} 13. Rad1 {[%clk 00:08:54]}
{[%emt 00:00:17]} Bf8 {[%clk 00:09:50]} {[%emt 00:00:20]} 14. f3 {[%clk
00:08:15]} {[%emt 00:00:44]} g5 {[%clk 00:08:41]} {[%emt 00:01:14]} 15. Nxd7
{[%clk 00:07:27]} {[%emt 00:01:01]} Nxd7 {[%clk 00:08:44]} 16. Be3 {[%clk
00:07:19]} {[%emt 00:00:07]} Nb6 {[%clk 00:08:43]} {[%emt 00:00:09]} 17. b3
{[%clk 00:06:55]} {[%emt 00:00:26]} Bb4 {[%clk 00:08:16]} {[%emt 00:00:35]} 18.
Bf2 {[%clk 00:06:07]} {[%emt 00:00:50]} f5 {[%clk 00:08:16]} {[%emt 00:00:06]}
19. Qc1 {[%clk 00:04:08]} {[%emt 00:02:10]} Qe7 {[%clk 00:07:40]} {[%emt
00:00:44]} 20. e4 {[%clk 00:03:20]} {[%emt 00:00:44]} fxe4 {[%clk 00:06:55]}
{[%emt 00:00:49]} 21. fxe4 {[%clk 00:03:19]} {[%emt 00:00:06]} Bxc3 {[%clk
00:06:57]} {[%emt 00:00:04]} 22. Qxc3 {[%clk 00:03:17]} {[%emt 00:00:11]} Bxe4
{[%clk 00:06:58]} 23. a4 {[%clk 00:02:58]} {[%emt 00:00:23]} a5 {[%clk
00:05:36]} {[%emt 00:01:27]} 24. Re2 {[%clk 00:02:39]} {[%emt 00:00:24]} Qb4
{[%clk 00:05:13]} {[%emt 00:00:27]} 25. Qxb4 {[%clk 00:02:09]} {[%emt
00:00:39]} axb4 {[%clk 00:05:17]} 26. Ra2 {[%clk 00:01:38]} {[%emt 00:00:39]}
Nd7 {[%clk 00:03:43]} {[%emt 00:01:35]} 27. Be1 {[%clk 00:01:18]} {[%emt
00:00:35]} Bxg2 {[%clk 00:03:15]} {[%emt 00:00:53]} 28. Kxg2 {[%clk 00:01:21]}
Re3 {[%clk 00:03:19]} 29. Rb1 {[%clk 00:00:52]} {[%emt 00:00:06]} Rae8 {[%clk
00:03:08]} {[%emt 00:00:16]} 30. Bxb4 {[%clk 00:00:52]} {[%emt 00:00:27]} Re2+
{[%clk 00:03:12]} 31. Rxe2 {[%clk 00:00:53]} Rxe2+ {[%clk 00:03:15]} 32. Kg1
{[%clk 00:00:49]} {[%emt 00:00:04]} Nf6 {[%clk 00:02:44]} {[%emt 00:00:29]} 33.
Rf1 {[%clk 00:00:29]} {[%emt 00:00:22]} Kg7 {[%clk 00:01:48]} {[%emt 00:01:14]}
34. Bf8+ {[%clk 00:00:26]} Kg6 {[%clk 00:01:51]} 35. Bxh6 {[%clk 00:00:14]}
{[%emt 00:00:13]} Ng4 {[%clk 00:01:15]} {[%emt 00:00:52]} 36. Bf8 {[%clk
00:00:17]} Nxh2 {[%clk 00:00:21]} {[%emt 00:00:57]} 37. Rf2 {[%clk 00:00:18]}
Rxf2 {[%clk 00:00:25]} 38. Kxf2 {[%clk 00:00:22]} {[%emt 00:00:08]} Kf5 {[%clk
00:00:26]} 39. Bc5 {[%clk 00:00:16]} {[%emt 00:00:07]} Ke4 {[%clk 00:00:27]}
{[%emt 00:00:16]} 40. b4 {[%clk 00:00:13]} Nf3 {[%clk 00:00:28]} 41. Be7 {[%clk
00:00:13]} {[%emt 00:00:06]} g4 {[%clk 00:00:30]} {[%emt 00:00:04]} 42. a5
{[%clk 00:00:11]} {[%emt 00:00:05]} Nxd4 {[%clk 00:00:32]} {[%emt 00:00:05]} 43.
Bc5 {[%clk 00:00:10]} {[%emt 00:00:06]} Kd3 {[%clk 00:00:33]} {[%emt 00:00:05]}
44. Ke1 {[%clk 00:00:10]} {[%emt 00:00:05]} Nc2+ {[%clk 00:00:20]} {[%emt
00:00:17]} 45. Kd1 {[%clk 00:00:13]} Ne3+ {[%clk 00:00:23]} 46. Kc1 {[%clk
00:00:12]} {[%emt 00:00:11]} d4 {[%clk 00:00:25]} 47. Bd6 {[%clk 00:00:10]}
{[%emt 00:00:06]} Nd5 {[%clk 00:00:24]} {[%emt 00:00:07]} 48. Kb2 {[%clk
00:00:10]} {[%emt 00:00:11]} Kc4 {[%clk 00:00:26]} 49. Be5 {[%clk 00:00:11]}
{[%emt 00:00:09]} Nxb4 {[%clk 00:00:28]} 0-1

[Event "MČR 2022 rapid"]
[Site "Turnov, Czech Republic"]
[Date "2022.09.11"]
[Round "2.5"]
[White "Civín, Tomáš"]
[Black "Štoček, Jiří"]
[Result "0-1"]
[TimeControl "2x 15 min + 5s/move"]
[WhiteElo "2394"]
[BlackElo "2521"]

1. d4 {[%clk 00:15:08]} {[%emt 00:00:06]} Nf6 {[%clk 00:15:06]} {[%emt
00:00:05]} 2. c4 {[%clk 00:15:12]} e6 {[%clk 00:15:03]} {[%emt 00:00:12]} 3. g3
{[%clk 00:15:09]} {[%emt 00:00:04]} c5 {[%clk 00:14:57]} {[%emt 00:00:08]} 4.
d5 {[%clk 00:15:12]} {[%emt 00:00:10]} exd5 {[%clk 00:14:55]} 5. cxd5 {[%clk
00:15:15]} b5 {[%clk 00:14:54]} {[%emt 00:00:10]} 6. a4 {[%clk 00:15:14]}
{[%emt 00:00:06]} b4 {[%clk 00:14:56]} {[%emt 00:00:04]} 7. Nd2 {[%clk
00:15:18]} g6 {[%clk 00:11:04]} {[%emt 00:03:54]} 8. Nc4 {[%clk 00:14:07]}
{[%emt 00:01:16]} Ba6 {[%clk 00:10:58]} {[%emt 00:00:11]} 9. Qd3 {[%clk
00:14:08]} {[%emt 00:00:07]} d6 {[%clk 00:10:13]} {[%emt 00:00:47]} 10. Bf4
{[%clk 00:13:54]} {[%emt 00:00:19]} Be7 {[%clk 00:10:06]} {[%emt 00:00:19]} 11.
Bg2 {[%clk 00:11:58]} {[%emt 00:02:08]} O-O {[%clk 00:09:50]} {[%emt 00:00:07]}
12. Nf3 {[%clk 00:12:00]} {[%emt 00:00:06]} Bxc4 {[%clk 00:09:11]} {[%emt
00:00:41]} 13. Qxc4 {[%clk 00:12:03]} {[%emt 00:00:14]} Nbd7 {[%clk 00:09:14]}
14. a5 {[%clk 00:11:29]} {[%emt 00:00:34]} Nh5 {[%clk 00:09:03]} {[%emt
00:00:12]} 15. O-O {[%clk 00:10:47]} {[%emt 00:00:46]} Re8 {[%clk 00:08:37]}
{[%emt 00:00:36]} 16. b3 {[%clk 00:06:52]} {[%emt 00:03:56]} Rb8 {[%clk
00:06:34]} {[%emt 00:02:07]} 17. Ra2 {[%clk 00:06:40]} {[%emt 00:00:17]} Nxf4
{[%clk 00:06:32]} {[%emt 00:00:10]} 18. gxf4 {[%clk 00:06:10]} {[%emt
00:00:34]} Bf6 {[%clk 00:06:03]} {[%emt 00:00:34]} 19. e3 {[%clk 00:06:10]}
{[%emt 00:00:05]} Bc3 {[%clk 00:05:59]} {[%emt 00:00:07]} 20. Ng5 {[%clk
00:03:59]} {[%emt 00:02:29]} Nf6 {[%clk 00:06:00]} 21. Kh1 {[%clk 00:03:11]}
{[%emt 00:00:49]} Qe7 {[%clk 00:05:34]} {[%emt 00:00:34]} 22. Re2 {[%clk
00:02:31]} {[%emt 00:00:37]} a6 {[%clk 00:03:41]} {[%emt 00:01:58]} 23. Qxa6
{[%clk 00:01:47]} {[%emt 00:00:49]} Ra8 {[%clk 00:03:43]} {[%emt 00:00:06]} 24.
Qc4 {[%clk 00:01:48]} {[%emt 00:00:05]} Rxa5 {[%clk 00:03:43]} {[%emt
00:00:04]} 25. f3 {[%clk 00:01:06]} {[%emt 00:00:44]} Qb7 {[%clk 00:03:25]}
{[%emt 00:00:22]} 26. Rd1 {[%clk 00:00:57]} {[%emt 00:00:15]} Qa8 {[%clk
00:03:12]} {[%emt 00:00:17]} 27. h4 {[%clk 00:00:36]} {[%emt 00:00:26]} Ra1
{[%clk 00:03:10]} {[%emt 00:00:09]} 28. Rxa1 {[%clk 00:00:40]} Qxa1+ {[%clk
00:03:13]} {[%emt 00:00:05]} 29. Kh2 {[%clk 00:00:44]} Qd1 {[%clk 00:03:05]}
{[%emt 00:00:10]} 30. e4 {[%clk 00:00:46]} {[%emt 00:00:11]} h6 {[%clk
00:02:38]} {[%emt 00:00:32]} 31. Nh3 {[%clk 00:00:43]} {[%emt 00:00:04]} Be1
{[%clk 00:02:16]} {[%emt 00:00:25]} 32. Nf2 {[%clk 00:00:38]} {[%emt 00:00:10]}
Bxf2 {[%clk 00:02:17]} {[%emt 00:00:07]} 33. Rxf2 {[%clk 00:00:42]} Nh5 {[%clk
00:02:10]} {[%emt 00:00:11]} 34. e5 {[%clk 00:00:25]} {[%emt 00:00:22]} dxe5
{[%clk 00:02:08]} {[%emt 00:00:05]} 35. fxe5 {[%clk 00:00:29]} {[%emt
00:00:06]} Rxe5 {[%clk 00:02:07]} {[%emt 00:00:04]} 36. Qxc5 {[%clk 00:00:30]}
{[%emt 00:00:04]} Rxd5 {[%clk 00:01:51]} {[%emt 00:00:22]} 37. Qxb4 {[%clk
00:00:29]} {[%emt 00:00:05]} Rd4 {[%clk 00:01:50]} {[%emt 00:00:03]} 38. Qb8+
{[%clk 00:00:34]} Rd8 {[%clk 00:01:48]} {[%emt 00:00:10]} 39. Qc7 {[%clk
00:00:31]} {[%emt 00:00:10]} Qd4 {[%clk 00:01:39]} {[%emt 00:00:09]} 40. f4
{[%clk 00:00:35]} Rd6 {[%clk 00:01:24]} {[%emt 00:00:38]} 41. Rf3 {[%clk
00:00:09]} {[%emt 00:00:15]} Qf6 {[%clk 00:01:26]} {[%emt 00:00:06]} 42. Kh3
{[%clk 00:00:12]} Nxf4+ {[%clk 00:01:22]} {[%emt 00:00:09]} 43. Kg4 {[%clk
00:00:11]} {[%emt 00:00:12]} Qf5+ {[%clk 00:00:58]} {[%emt 00:00:25]} 44. Kg3
{[%clk 00:00:15]} Nh5+ {[%clk 00:00:56]} {[%emt 00:00:06]} 45. Kf2 {[%clk
00:00:07]} {[%emt 00:00:12]} Qe6 {[%clk 00:00:51]} {[%emt 00:00:09]} 46. Kg1
{[%clk 00:00:07]} {[%emt 00:00:15]} Rd7 {[%clk 00:00:45]} {[%emt 00:00:05]} 47.
Qb8+ {[%clk 00:00:09]} Kg7 {[%clk 00:00:45]} {[%emt 00:00:04]} 48. Kh2 {[%clk
00:00:12]} {[%emt 00:00:06]} Rd6 {[%clk 00:00:44]} {[%emt 00:00:05]} 49. Qc7
{[%clk 00:00:14]} {[%emt 00:00:05]} Qe5+ 50. Kh3 {[%emt 00:00:04]} Nf4+ {[%clk
00:00:38]} {[%emt 00:00:08]} 51. Kg4 {[%clk 00:00:21]} {[%emt 00:00:06]} h5+
{[%clk 00:00:40]} {[%emt 00:00:08]} 0-1

[Event "MČR 2022 rapid"]
[Site "Turnov, Czech Republic"]
[Date "2022.09.11"]
[Round "2.6"]
[White "Petr, Martin"]
[Black "Borkovec, Milan"]
[Result "1-0"]
[TimeControl "2x 15 min + 5s/move"]
[WhiteElo "2506"]
[BlackElo "2063"]

1. e4 {[%clk 00:15:08]} {[%emt 00:00:14]} e5 {[%clk 00:15:02]} 2. f4 {[%clk
00:15:12]} exf4 {[%clk 00:14:58]} {[%emt 00:00:11]} 3. Nf3 {[%clk 00:15:15]}
Nf6 {[%clk 00:14:51]} {[%emt 00:00:13]} 4. e5 {[%clk 00:15:15]} {[%emt
00:00:06]} Nh5 {[%clk 00:14:54]} 5. Be2 {[%clk 00:15:19]} Be7 {[%clk 00:14:33]}
{[%emt 00:00:27]} 6. O-O {[%clk 00:15:19]} {[%emt 00:00:08]} d6 {[%clk
00:12:56]} {[%emt 00:01:55]} 7. Ne1 {[%clk 00:15:12]} f3 {[%clk 00:12:29]}
{[%emt 00:01:09]} 8. Bxf3 {[%clk 00:14:48]} Nf4 {[%clk 00:12:33]} 9. exd6
{[%clk 00:13:47]} {[%emt 00:00:53]} Bxd6 {[%clk 00:12:14]} {[%emt 00:00:23]} 10.
d4 {[%clk 00:13:50]} {[%emt 00:00:10]} Ng6 {[%clk 00:09:47]} {[%emt 00:02:33]}
11. Nc3 {[%clk 00:12:53]} {[%emt 00:00:59]} O-O {[%clk 00:08:45]} {[%emt
00:01:07]} 12. Ne4 {[%clk 00:12:49]} {[%emt 00:00:04]} Be7 {[%clk 00:07:00]}
{[%emt 00:01:49]} 13. c3 {[%clk 00:11:39]} {[%emt 00:01:24]} Nd7 {[%clk
00:05:48]} {[%emt 00:01:08]} 14. Nd3 {[%clk 00:11:25]} {[%emt 00:00:19]} Nf6
{[%clk 00:05:42]} {[%emt 00:00:21]} 15. Nxf6+ {[%clk 00:10:50]} {[%emt
00:00:30]} Bxf6 {[%clk 00:05:45]} {[%emt 00:00:05]} 16. Be3 {[%clk 00:10:29]}
{[%emt 00:00:23]} Re8 {[%clk 00:05:09]} {[%emt 00:00:41]} 17. Bf2 {[%clk
00:09:38]} {[%emt 00:00:56]} c6 {[%clk 00:04:18]} {[%emt 00:00:55]} 18. Qb3
{[%clk 00:09:11]} {[%emt 00:00:35]} Qb6 {[%clk 00:02:16]} {[%emt 00:02:05]} 19.
Nc5 {[%clk 00:09:05]} {[%emt 00:00:11]} Be6 {[%clk 00:01:15]} {[%emt 00:01:05]}
20. Qxb6 {[%clk 00:08:10]} {[%emt 00:01:01]} axb6 {[%clk 00:01:18]} 21. Nxb7
{[%clk 00:08:14]} {[%emt 00:00:09]} Bd5 {[%clk 00:01:05]} {[%emt 00:00:16]} 22.
Bg3 {[%clk 00:05:58]} {[%emt 00:02:16]} Bxf3 {[%clk 00:15:05]} {[%emt
00:01:13]} 23. Nc5 1-0

[Event "MČR 2022 rapid"]
[Site "Turnov, Czech Republic"]
[Date "2022.09.11"]
[Round "2.7"]
[White "Trepka, Jan"]
[Black "Neuman, Petr"]
[Result "0-1"]
[TimeControl "2x 15 min + 5s/move"]
[WhiteElo "2200"]
[BlackElo "2416"]

1. d4 {[%clk 00:15:08]} d6 {[%clk 00:15:09]} {[%emt 00:00:09]} 2. Nf3 {[%clk
00:15:03]} Nf6 {[%clk 00:15:13]} {[%emt 00:00:09]} 3. c4 {[%clk 00:14:59]}
{[%emt 00:00:05]} g6 {[%clk 00:15:15]} 4. Nc3 {[%clk 00:14:59]} {[%emt
00:00:10]} Bg7 {[%clk 00:15:19]} 5. e4 {[%clk 00:14:47]} {[%emt 00:00:13]} O-O
{[%clk 00:15:22]} 6. h3 {[%clk 00:14:32]} {[%emt 00:00:21]} Na6 {[%clk
00:15:21]} {[%emt 00:00:06]} 7. Be3 {[%clk 00:14:12]} {[%emt 00:00:24]} e5
{[%clk 00:15:24]} {[%emt 00:00:15]} 8. d5 {[%clk 00:13:57]} {[%emt 00:00:09]}
Nc5 {[%clk 00:14:50]} {[%emt 00:00:41]} 9. Bd3 {[%clk 00:13:35]} {[%emt
00:00:24]} Nxd3+ {[%clk 00:14:47]} {[%emt 00:00:09]} 10. Qxd3 {[%clk 00:13:38]}
Nh5 {[%clk 00:14:48]} {[%emt 00:00:09]} 11. Qd2 {[%clk 00:12:22]} {[%emt
00:01:17]} f5 {[%clk 00:12:16]} {[%emt 00:02:41]} 12. exf5 {[%clk 00:11:13]}
{[%emt 00:01:10]} gxf5 {[%clk 00:12:20]} 13. Bg5 {[%clk 00:09:10]} {[%emt
00:02:09]} Qe8 {[%clk 00:12:23]} {[%emt 00:00:05]} 14. g3 {[%clk 00:08:51]}
{[%emt 00:00:28]} Bd7 {[%clk 00:11:02]} {[%emt 00:01:18]} 15. O-O-O {[%clk
00:07:41]} {[%emt 00:01:16]} a6 {[%clk 00:10:35]} {[%emt 00:00:36]} 16. Rhe1
{[%clk 00:06:48]} {[%emt 00:00:58]} b5 {[%clk 00:10:35]} {[%emt 00:00:04]} 17.
c5 {[%clk 00:06:03]} {[%emt 00:00:46]} b4 {[%clk 00:10:20]} {[%emt 00:00:19]}
18. Ne2 {[%clk 00:06:01]} {[%emt 00:00:09]} dxc5 {[%clk 00:09:46]} {[%emt
00:00:39]} 19. d6 {[%clk 00:06:05]} Qe6 {[%clk 00:07:10]} {[%emt 00:02:41]} 20.
dxc7 {[%clk 00:04:46]} {[%emt 00:01:24]} Bc6 {[%clk 00:06:47]} {[%emt
00:00:28]} 21. Nh4 {[%clk 00:03:26]} {[%emt 00:01:24]} Qxa2 {[%clk 00:06:28]}
{[%emt 00:00:25]} 22. Qc2 {[%clk 00:03:28]} {[%emt 00:00:06]} Be4 {[%clk
00:05:36]} {[%emt 00:00:54]} 23. Qxc5 {[%clk 00:02:20]} {[%emt 00:01:13]} Qb1+
{[%clk 00:05:36]} {[%emt 00:00:08]} 24. Kd2 {[%clk 00:02:24]} Qxb2+ {[%clk
00:05:39]} 25. Ke3 {[%clk 00:02:28]} Qb3+ {[%clk 00:05:36]} {[%emt 00:00:10]}
26. Kd2 {[%clk 00:02:21]} {[%emt 00:00:16]} f4 {[%clk 00:04:16]} {[%emt
00:01:26]} 27. Rf1 {[%clk 00:01:38]} {[%emt 00:00:50]} Nf6 {[%clk 00:03:03]}
{[%emt 00:01:22]} 28. Rc1 {[%clk 00:00:55]} {[%emt 00:00:36]} Qb2+ {[%clk
00:02:17]} {[%emt 00:00:51]} 29. Ke1 {[%clk 00:00:57]} {[%emt 00:00:06]} Bd3
{[%clk 00:02:17]} {[%emt 00:00:04]} 30. Ng1 {[%clk 00:00:43]} {[%emt 00:00:24]}
Bxf1 {[%clk 00:02:12]} {[%emt 00:00:09]} 31. Kxf1 {[%clk 00:00:44]} fxg3 {[%clk
00:02:13]} {[%emt 00:00:18]} 32. Rc2 {[%clk 00:00:25]} {[%emt 00:00:09]} Qa1+
{[%clk 00:02:11]} {[%emt 00:00:09]} 33. Kg2 {[%clk 00:00:29]} Qd4 {[%clk
00:02:02]} {[%emt 00:00:13]} 34. Nf5 {[%clk 00:00:18]} {[%emt 00:00:17]} Qe4+
{[%clk 00:02:04]} {[%emt 00:00:05]} 35. Nf3 {[%clk 00:00:17]} {[%emt 00:00:06]}
Qxf5 {[%clk 00:02:05]} {[%emt 00:00:05]} 36. fxg3 {[%clk 00:00:11]} {[%emt
00:00:07]} Qxf3+ {[%clk 00:01:03]} {[%emt 00:01:08]} 37. Kxf3 {[%clk 00:00:13]}
{[%emt 00:00:05]} Nd7+ {[%clk 00:01:06]} 38. Ke4 {[%clk 00:00:11]} {[%emt
00:00:09]} Nxc5+ {[%clk 00:01:08]} 39. Rxc5 {[%clk 00:00:21]} Rfc8 {[%clk
00:01:09]} {[%emt 00:00:10]} 40. Kd4 {[%clk 00:15:05]} {[%emt 00:00:11]} 0-1

[Event "MČR 2022 rapid"]
[Site "Turnov, Czech Republic"]
[Date "2022.09.11"]
[Round "2.8"]
[White "Klement, Lukáš"]
[Black "Růžička, Aleš"]
[Result "1-0"]
[TimeControl "2x 15 min + 5s/move"]
[WhiteElo "2264"]
[BlackElo "2080"]

1. d4 {[%clk 00:15:08]} {[%emt 00:00:05]} Nf6 {[%clk 00:15:04]} {[%emt
00:00:15]} 2. c4 {[%clk 00:15:11]} c5 {[%clk 00:15:06]} 3. Nf3 {[%clk
00:15:10]} {[%emt 00:00:05]} g6 {[%clk 00:14:51]} {[%emt 00:00:15]} 4. Nc3
{[%clk 00:15:11]} {[%emt 00:00:05]} Bg7 {[%clk 00:14:37]} {[%emt 00:00:23]} 5.
e4 {[%clk 00:15:03]} {[%emt 00:00:17]} cxd4 {[%clk 00:14:27]} {[%emt 00:00:06]}
6. Nxd4 {[%clk 00:15:07]} d6 {[%clk 00:14:30]} {[%emt 00:00:06]} 7. Be2 {[%clk
00:15:10]} {[%emt 00:00:09]} O-O {[%clk 00:14:16]} {[%emt 00:00:17]} 8. O-O
{[%clk 00:15:12]} a6 {[%clk 00:14:15]} {[%emt 00:00:05]} 9. Be3 {[%clk
00:15:12]} {[%emt 00:00:05]} Bd7 {[%clk 00:13:48]} {[%emt 00:00:34]} 10. Rc1
{[%clk 00:13:53]} {[%emt 00:01:18]} Nc6 {[%clk 00:13:42]} {[%emt 00:00:15]} 11.
Kh1 {[%clk 00:12:10]} {[%emt 00:01:45]} Nxd4 {[%clk 00:13:16]} {[%emt
00:00:43]} 12. Bxd4 {[%clk 00:12:12]} Bc6 {[%clk 00:13:15]} 13. f3 {[%clk
00:11:44]} {[%emt 00:00:28]} Nd7 {[%clk 00:12:18]} {[%emt 00:01:06]} 14. Be3
{[%clk 00:11:25]} {[%emt 00:00:26]} Qc7 {[%clk 00:10:20]} {[%emt 00:01:58]} 15.
b4 {[%clk 00:11:03]} {[%emt 00:00:27]} b6 {[%clk 00:09:43]} {[%emt 00:00:42]}
16. Nd5 {[%clk 00:10:34]} {[%emt 00:00:41]} Bxd5 {[%clk 00:09:25]} {[%emt
00:00:16]} 17. cxd5 {[%clk 00:10:37]} {[%emt 00:00:06]} Qb7 {[%clk 00:09:09]}
{[%emt 00:00:17]} 18. Qd3 {[%clk 00:08:12]} {[%emt 00:02:35]} Ne5 {[%clk
00:08:04]} {[%emt 00:01:08]} 19. Qa3 {[%clk 00:08:02]} {[%emt 00:00:12]} Rfc8
{[%clk 00:04:32]} {[%emt 00:03:36]} 20. Rxc8+ {[%clk 00:08:01]} {[%emt
00:00:06]} Qxc8 {[%clk 00:04:15]} {[%emt 00:00:22]} 21. Rc1 {[%clk 00:06:55]}
{[%emt 00:01:10]} Qb7 {[%clk 00:04:08]} {[%emt 00:00:13]} 22. Qb3 {[%clk
00:05:44]} {[%emt 00:01:18]} b5 {[%clk 00:03:39]} {[%emt 00:00:38]} 23. Qc2
{[%clk 00:05:41]} {[%emt 00:00:13]} h5 {[%clk 00:03:00]} {[%emt 00:00:36]} 24.
h3 {[%clk 00:04:10]} {[%emt 00:01:32]} Rb8 {[%clk 00:02:06]} {[%emt 00:00:59]}
25. Qc7 {[%clk 00:03:46]} {[%emt 00:00:29]} Nc4 {[%clk 00:01:24]} {[%emt
00:00:47]} 26. Qxb7 {[%clk 00:03:45]} {[%emt 00:00:07]} Rxb7 {[%clk 00:01:27]}
{[%emt 00:00:05]} 27. Bxc4 {[%clk 00:03:45]} {[%emt 00:00:05]} bxc4 {[%clk
00:01:31]} 28. Rxc4 {[%clk 00:03:49]} a5 {[%clk 00:01:19]} {[%emt 00:00:16]} 29.
bxa5 {[%clk 00:03:25]} {[%emt 00:00:28]} Rb1+ {[%clk 00:01:18]} {[%emt
00:00:09]} 30. Kh2 {[%clk 00:01:45]} {[%emt 00:01:43]} Rb2 {[%clk 00:01:16]}
{[%emt 00:00:07]} 31. a6 {[%clk 00:01:42]} {[%emt 00:00:13]} Rxa2 {[%clk
00:00:48]} {[%emt 00:00:30]} 32. a7 {[%clk 00:01:45]} {[%emt 00:00:04]} Be5+
{[%clk 00:00:41]} {[%emt 00:00:10]} 33. Kg1 {[%clk 00:01:10]} {[%emt 00:00:43]}
Ra1+ {[%clk 00:00:30]} {[%emt 00:00:13]} 34. Kf2 {[%clk 00:01:04]} {[%emt
00:00:16]} Ra2+ {[%clk 00:00:22]} {[%emt 00:00:08]} 35. Ke1 {[%clk 00:00:49]}
{[%emt 00:00:21]} Ra1+ {[%clk 00:00:13]} {[%emt 00:00:27]} 36. Rc1 {[%clk
00:00:43]} Bg3+ {[%clk 00:00:10]} {[%emt 00:00:05]} 37. Kd1 {[%clk 00:00:42]}
{[%emt 00:00:11]} 1-0